bitfinex-derivatives/quotes_BTCF0:USTF0_20250324
["timestamp","ask_amount","ask_price","bid_price","bid_amount"]
[1742824119941,0.12333613,87603.0,87602.0,0.3608]
[1742824120331,0.20473613,87603.0,87602.0,0.4749503]
[1742824120737,0.11561997,87603.0,87602.0,0.4749503]
[1742824120953,0.00017093,87611.0,87610.0,0.1141399]
[1742824121149,0.00085093,87611.0,87610.0,0.4756199]
[1742824121444,0.00093093,87611.0,87610.0,0.4756199]
[1742824121650,0.11506953,87611.0,87610.0,0.4756199]
[1742824122053,0.19866953,87611.0,87610.0,0.4756199]
[1742824122348,0.28046953,87611.0,87610.0,0.4756199]
[1742824123648,0.16633093,87611.0,87610.0,0.4756199]
[1742824123851,0.08453093,87611.0,87610.0,0.4756199]
[1742824124046,0.08377093,87611.0,87610.0,0.5958999]
[1742824124353,0.19858953,87611.0,87610.0,0.48176]
[1742824124548,0.28202953,87611.0,87610.0,0.48176]
[1742824124744,0.28202953,87611.0,87610.0,0.5958999]
[1742824125140,0.28202953,87611.0,87610.0,0.48176]
[1742824125345,0.39617109,87611.0,87610.0,0.00068]
[1742824125653,0.16789093,87611.0,87610.0,0.4749399]
[1742824125859,0.16789093,87611.0,87610.0,0.4756599]
[1742824125860,0.08449093,87611.0,87610.0,0.4756599]
[1742824126056,0.19790953,87611.0,87610.0,0.4756599]
[1742824126255,0.28198953,87611.0,87610.0,0.4756599]
[1742824126454,0.16785093,87611.0,87610.0,0.5519599]
[1742824126661,0.28198953,87611.0,87610.0,0.5519599]
[1742824127854,0.28198953,87611.0,87610.0,0.4756599]
[1742824128960,0.28198953,87611.0,87610.0,0.36152]
[1742824129162,0.39613109,87611.0,87610.0,0.36152]
[1742824129356,0.39613109,87611.0,87610.0,0.1148599]
[1742824130065,0.28199249,87611.0,87610.0,0.4756599]
[1742824130259,0.00055079,87611.0,87610.0,1.0080999]
[1742824130461,8e-05,87613.0,87612.0,0.1141373]
[1742824130661,0.0822,87622.0,87621.0,0.1141256]
[1742824130863,0.08296,87622.0,87621.0,0.4757256]
[1742824131174,0.08296,87622.0,87621.0,0.5597256]
[1742824131761,0.09825048,87622.0,87621.0,0.6380256]
[1742824132162,0.21237478,87622.0,87621.0,0.5597256]
[1742824132474,0.21237478,87622.0,87621.0,0.3616]
[1742824132671,0.29387478,87622.0,87621.0,0.4757256]
[1742824132971,0.30295243,87622.0,87621.0,0.4757256]
[1742824133274,0.1141347,87614.0,87606.0,0.1202]
[1742824133477,0.12389235,87614.0,87613.0,0.00085118]
[1742824133773,0.20599235,87614.0,87613.0,0.00085118]
[1742824133977,0.34498181,87614.0,87613.0,0.00085118]
[1742824134366,0.34498181,87614.0,87613.0,0.00017118]
[1742824134673,0.34498181,87614.0,87613.0,0.00077118]
[1742824134870,0.33590416,87614.0,87613.0,0.00077118]
[1742824135267,0.1141412,87609.0,87608.0,0.3608]
[1742824135468,0.13900342,87609.0,87608.0,0.3608]
[1742824135672,0.22194342,87609.0,87608.0,0.3614]
[1742824135862,0.23110658,87609.0,87608.0,0.3614]
[1742824136068,0.34524424,87609.0,87608.0,0.3614]
[1742824136571,0.42104424,87609.0,87608.0,0.3614]
[1742824138464,0.50074424,87609.0,87608.0,0.3614]
[1742824141574,0.1141516,87601.0,87600.0,0.11432408]
[1742824141881,0.01020317,87601.0,87600.0,0.11500408]
[1742824142081,0.03402538,87601.0,87600.0,0.27820408]
[1742824142281,0.03402538,87601.0,87600.0,0.27752408]
[1742824142876,0.26233157,87601.0,87600.0,0.00077118]
[1742824143083,0.26233157,87601.0,87583.0,0.00045671]
[1742824143084,0.1141659,87590.0,87589.0,0.09109652]
[1742824143267,0.12452907,87590.0,87589.0,0.45234]
[1742824143469,0.1141738,87584.0,87583.0,0.00045671]
[1742824143669,0.12333696,87584.0,87583.0,0.00045671]
[1742824143974,0.1141855,87575.0,87574.0,0.3608]
[1742824144280,0.1141927,87570.0,87567.0,0.00045679]
[1742824144469,0.1141946,87568.0,87567.0,0.08993699]
[1742824144671,0.12235776,87568.0,87567.0,0.00045679]
[1742824144867,0.14721998,87568.0,87567.0,0.00045679]
[1742824145072,0.42449673,87568.0,87567.0,0.00045679]
[1742824145481,0.42349673,87568.0,87567.0,0.00045679]
[1742824145683,0.78429673,87568.0,87567.0,0.00045679]
[1742824145873,0.1142051,87560.0,87559.0,0.3608]
[1742824146177,0.24300826,87560.0,87559.0,0.3608]
[1742824146379,0.25258,87560.0,87559.0,0.3608]
[1742824146582,0.36677761,87560.0,87559.0,0.3608]
[1742824146779,0.53627761,87560.0,87559.0,0.3608]
[1742824146975,0.41663761,87560.0,87559.0,0.4750064]
[1742824147170,0.1036349,87560.0,87559.0,0.4750064]
[1742824147373,0.0187349,87560.0,87559.0,0.8358064]
[1742824147686,0.0187349,87560.0,87559.0,1.0022064]
[1742824147981,0.00957174,87560.0,87559.0,1.0122064]
[1742824148575,0.1141941,87569.0,87559.0,1.0122064]
[1742824148576,8e-05,87580.0,87566.0,0.0570985]
[1742824148777,8e-05,87580.0,87579.0,0.4749803]
[1742824148980,0.114259,87580.0,87579.0,0.36144]
[1742824149185,0.11565901,87580.0,87579.0,0.4756203]
[1742824149483,0.11565901,87580.0,87579.0,0.36144]
[1742824149681,0.22984945,87580.0,87579.0,0.36144]
[1742824149886,0.23084945,87580.0,87579.0,0.00064]
[1742824150089,0.1141894,87572.0,87571.0,0.00017128]
[1742824150381,0.1141998,87564.0,87559.0,0.417903]
[1742824150572,0.1141998,87564.0,87559.0,0.3608]
[1742824150769,0.22998177,87564.0,87559.0,0.4750063]
[1742824150970,0.22998177,87564.0,87559.0,0.3608]
[1742824151174,0.2781998,87564.0,87563.0,0.58901317]
[1742824151380,0.2765998,87564.0,87563.0,0.58901317]
[1742824151575,0.2765998,87564.0,87563.0,0.47481197]
[1742824151784,0.39244263,87564.0,87563.0,0.47481197]
[1742824152786,0.39344263,87564.0,87563.0,0.47481197]
[1742824152973,0.1713069,87562.0,87559.0,0.4179027]
[1742824153174,0.1142038,87561.0,87560.0,0.0851]
[1742824153371,0.1158038,87561.0,87560.0,0.1993051]
[1742824153787,0.23000663,87561.0,87560.0,0.1993051]
[1742824154282,0.23000663,87561.0,87560.0,0.0851]
[1742824155489,0.23000663,87561.0,87559.0,0.3608]
[1742824155490,0.1142051,87560.0,87559.0,0.3608]
[1742824155784,0.1158051,87560.0,87559.0,0.4750064]
[1742824156179,0.23001315,87560.0,87559.0,0.4750064]
[1742824156480,0.23001315,87560.0,87559.0,0.3608]
[1742824156977,0.23101315,87560.0,87559.0,0.3608]
[1742824157485,0.23101315,87560.0,87559.0,0.4750064]
[1742824157880,0.00024723,87560.0,87559.0,0.7550064]
[1742824158084,0.00024723,87560.0,87559.0,1.2580064]
[1742824158276,0.3608,87583.0,87568.0,0.1141946]
[1742824158476,0.3608,87583.0,87568.0,0.5946746]
[1742824158477,0.4178876,87583.0,87568.0,0.5946746]
[1742824158688,0.1141825,87578.0,87568.0,0.5946746]
[1742824158886,8e-05,87572.0,87568.0,0.5946746]
[1742824159285,0.11436458,87569.0,87568.0,0.3614]
[1742824159474,0.2297609,87569.0,87568.0,0.0006]
[1742824159674,0.171305,87563.0,87562.0,0.1142013]
[1742824160072,0.0571012,87563.0,87560.0,0.3608]
[1742824160283,0.1713029,87563.0,87562.0,0.1142025]
[1742824160487,0.11420413,87563.0,87562.0,0.1142025]
[1742824160687,0.00932412,87563.0,87562.0,0.1142025]
[1742824161383,0.00932412,87563.0,87562.0,0.2103025]
[1742824161784,0.00317128,87569.0,87568.0,0.1141946]
[1742824162089,0.1141701,87587.0,87586.0,0.1141699]
[1742824162276,0.1141725,87586.0,87585.0,0.1141721]
[1742824162586,0.23777036,87586.0,87585.0,0.2002721]
[1742824162769,0.12356623,87586.0,87585.0,0.2002721]
[1742824163176,0.23777036,87586.0,87585.0,0.2002721]
[1742824163382,0.23777036,87586.0,87585.0,0.0861]
[1742824163686,0.114179,87580.0,87579.0,0.3608]
[1742824164188,0.13239542,87580.0,87579.0,0.3608]
[1742824164386,0.24657739,87580.0,87579.0,0.3608]
[1742824164587,0.24657739,87580.0,87578.0,0.0848]
[1742824164588,0.1141816,87578.0,87577.0,0.00017128]
[1742824164880,0.12308429,87578.0,87577.0,0.00017128]
[1742824165091,0.1980816,87578.0,87577.0,0.00017128]
[1742824165271,0.3227399,87578.0,87577.0,0.00081128]
[1742824165696,0.3227399,87578.0,87577.0,0.36161128]
[1742824165890,0.4055399,87578.0,87577.0,0.36161128]
[1742824166079,0.4055399,87578.0,87577.0,0.00081128]
[1742824167274,0.4055399,87578.0,87577.0,0.44151128]
[1742824167475,0.2074583,87578.0,87577.0,0.55569418]
[1742824167874,0.2074583,87578.0,87577.0,0.64179418]
[1742824168072,0.2388399,87578.0,87577.0,0.64179418]
[1742824168274,0.01047373,87578.0,87577.0,0.64179418]
[1742824168476,0.12465533,87578.0,87577.0,0.64179418]
[1742824168974,0.12465533,87578.0,87577.0,0.44151128]
[1742824169174,0.20665533,87578.0,87577.0,0.55569418]
[1742824169378,0.20665533,87578.0,87577.0,0.44151128]
[1742824169989,0.28905533,87578.0,87577.0,0.44151128]
[1742824171692,0.4032399,87578.0,87577.0,0.00081128]
[1742824171889,0.4032399,87578.0,87577.0,0.00017128]
[1742824172193,0.2070583,87578.0,87577.0,0.47579418]
[1742824172388,0.09287373,87578.0,87577.0,0.47575418]
[1742824172585,0.09171373,87578.0,87577.0,0.63665418]
[1742824172792,0.00931373,87578.0,87577.0,0.86665418]
[1742824172977,0.00931373,87578.0,87577.0,0.63665418]
[1742824173491,0.08893374,87578.0,87577.0,0.63665418]
[1742824173697,0.08781373,87578.0,87577.0,0.63665418]
[1742824173897,0.08893374,87578.0,87577.0,0.63665418]
[1742824174289,0.08781373,87578.0,87577.0,0.63665418]
[1742824174498,0.08901374,87578.0,87577.0,0.75477418]
[1742824175093,0.20319534,87578.0,87577.0,0.67487418]
[1742824175282,0.28319534,87578.0,87577.0,0.67487418]
[1742824175487,0.28319534,87578.0,87577.0,0.55675418]
[1742824175686,0.16901374,87578.0,87577.0,0.55675418]
[1742824176193,0.08901374,87578.0,87577.0,0.55675418]
[1742824176398,0.08781373,87578.0,87577.0,0.64135418]
[1742824176694,0.08901374,87578.0,87577.0,0.64135418]
[1742824177207,0.08901374,87578.0,87577.0,0.65135418]
[1742824177396,0.00931373,87578.0,87577.0,0.91135418]
[1742824177589,0.0004,87592.0,87591.0,0.1141646]
[1742824177788,0.0004,87592.0,87591.0,0.8437246]
[1742824178297,0.0093873,87592.0,87591.0,0.9283246]
[1742824178801,0.00938746,87592.0,87591.0,0.9283246]
[1742824179189,0.0004,87592.0,87591.0,0.9283246]
[1742824180001,0.08506,87592.0,87591.0,0.9283246]
[1742824180197,0.09397865,87592.0,87591.0,0.9283246]
[1742824180900,0.09397865,87592.0,87591.0,1.2891246]
[1742824181097,0.10815821,87592.0,87591.0,1.3756246]
[1742824181500,0.02465821,87592.0,87591.0,1.3756246]
[1742824182097,0.02465821,87592.0,87591.0,1.7456246]
[1742824182098,0.01573956,87592.0,87591.0,1.7456246]
[1742824182303,0.0004,87592.0,87591.0,1.7456246]
[1742824182889,0.00017128,87594.0,87593.0,0.114162]
[1742824183099,8e-05,87596.0,87595.0,0.1141594]
[1742824183405,8e-05,87596.0,87595.0,0.6547594]
[1742824183898,8e-05,87596.0,87595.0,0.7731594]
[1742824184299,8e-05,87596.0,87595.0,0.7731194]
[1742824184602,0.0156152,87596.0,87595.0,0.7731194]
[1742824184790,0.0156152,87596.0,87595.0,0.4931194]
[1742824185104,0.0156152,87596.0,87595.0,0.4930794]
[1742824185301,0.1297733,87596.0,87595.0,0.37892]
[1742824185494,0.1297733,87596.0,87595.0,0.4930794]
[1742824185810,0.1297733,87596.0,87595.0,0.3747594]
[1742824185991,0.1309333,87596.0,87595.0,0.3747594]
[1742824186192,0.0996752,87596.0,87595.0,0.3747594]
[1742824186394,0.09971521,87596.0,87595.0,0.4542594]
[1742824186593,0.2126733,87596.0,87595.0,0.4542594]
[1742824186793,0.21379331,87596.0,87595.0,0.4542594]
[1742824186988,0.21379331,87596.0,87595.0,0.2606]
[1742824187190,0.32795442,87596.0,87595.0,0.0006]
[1742824187499,0.32795442,87596.0,87591.0,0.7216]
[1742824187500,0.1141633,87592.0,87591.0,0.7216]
[1742824187706,0.1154833,87592.0,87591.0,0.7222]
[1742824188001,0.1310185,87592.0,87591.0,0.3614]
[1742824188202,0.24517961,87592.0,87591.0,0.3614]
[1742824188395,0.13101631,87592.0,87591.0,0.7255646]
[1742824188588,0.0168552,87592.0,87591.0,1.0738446]
[1742824188790,0.0155352,87592.0,87591.0,1.2366446]
[1742824189194,0.0155352,87592.0,87591.0,1.0066446]
[1742824189602,0.0155352,87592.0,87591.0,1.0166446]
[1742824190206,0.0829,87596.0,87595.0,0.1141594]
[1742824190505,0.0829,87596.0,87595.0,0.4855594]
[1742824190906,0.10823828,87596.0,87595.0,0.4855594]
[1742824191691,0.10823828,87596.0,87595.0,0.6500594]
[1742824192006,0.10951828,87596.0,87595.0,0.6500594]
[1742824192504,0.10823828,87596.0,87595.0,0.6500594]
[1742824193505,0.02533828,87596.0,87595.0,0.6500594]
[1742824193896,0.13949638,87596.0,87595.0,0.48952]
[1742824194100,0.14077638,87596.0,87595.0,0.3714]
[1742824194405,0.30717638,87596.0,87595.0,0.3714]
[1742824194801,0.30717638,87596.0,87595.0,0.3614]
[1742824195007,0.19301828,87596.0,87595.0,0.4755594]
[1742824195209,0.30717638,87596.0,87595.0,0.4755594]
[1742824196002,0.19301828,87596.0,87595.0,0.4755594]
[1742824196202,0.10891828,87596.0,87595.0,0.5540594]
[1742824196405,0.10763828,87596.0,87595.0,0.6362594]
[1742824196905,0.10763828,87596.0,87595.0,0.9970594]
[1742824197615,0.10891828,87596.0,87595.0,0.9970594]
[1742824197800,0.10891828,87596.0,87595.0,1.0070594]
[1742824198309,0.10763828,87596.0,87595.0,1.0070594]
[1742824198809,0.10763828,87596.0,87595.0,1.0170594]
[1742824199598,0.19703828,87596.0,87595.0,1.0170594]
[1742824200211,0.19703828,87596.0,87595.0,0.8563594]
[1742824200706,0.02533828,87596.0,87595.0,1.0283594]
[1742824201109,0.09604549,87596.0,87595.0,1.0283594]
[1742824201307,0.00974549,87596.0,87595.0,1.0283594]
[1742824201707,0.00974549,87603.0,87602.0,0.1141503]
[1742824201909,0.00974549,87603.0,87602.0,0.6634303]
[1742824202111,0.09604549,87603.0,87602.0,0.6634303]
[1742824202313,0.1115356,87603.0,87602.0,0.6634303]
[1742824203609,0.09604549,87603.0,87602.0,0.6634303]
[1742824204909,0.00974549,87603.0,87602.0,0.6734303]
[1742824205305,0.02506658,87603.0,87602.0,0.6734303]
[1742824206013,0.11166658,87603.0,87602.0,0.6734303]
[1742824211418,8e-08,87608.0,87602.0,0.6163551]
[1742824211626,0.0832,87620.0,87602.0,0.6163551]
[1742824211627,0.0849,87631.0,87623.0,0.114123]
[1742824211827,8e-05,87629.0,87623.0,1.632723]
[1742824212620,0.0004,87624.0,87623.0,1.632723]
[1742824215717,0.0004,87624.0,87623.0,1.515563]
[1742824215919,0.0004,87624.0,87623.0,1.632363]
[1742824216711,0.0004,87624.0,87623.0,1.40144]
[1742824216915,0.0004,87624.0,87623.0,1.34896]
[1742824217122,0.0004,87624.0,87623.0,0.72224]
[1742824217412,0.0004,87624.0,87623.0,0.83896]
[1742824217413,0.00933898,87624.0,87623.0,0.83896]
[1742824217614,0.18373898,87624.0,87623.0,0.83896]
[1742824217819,0.18509898,87624.0,87623.0,0.83896]
[1742824218029,0.18373898,87624.0,87623.0,0.83896]
[1742824218324,0.29918061,87624.0,87623.0,0.83896]
[1742824218524,0.29918061,87624.0,87623.0,0.22654]
[1742824219114,0.18505891,87624.0,87623.0,0.340663]
[1742824219529,0.17612,87624.0,87623.0,0.560663]
[1742824219830,0.1748,87624.0,87623.0,0.648363]
[1742824220127,0.2902417,87624.0,87623.0,0.22654]
[1742824220630,0.1141269,87620.0,87619.0,0.11656]
[1742824220821,0.1141321,87616.0,87615.0,0.00017128]
[1742824221022,0.1141321,87616.0,87615.0,0.13669128]
[1742824221222,0.1980321,87616.0,87615.0,0.02017128]
[1742824221429,0.0570699,87610.0,87608.0,0.47732]
[1742824221725,0.0570699,87610.0,87594.0,0.3608]
[1742824221726,0.0570757,87602.0,87601.0,0.11652]
[1742824221916,0.0570757,87602.0,87594.0,0.4178801]
[1742824221917,0.1141581,87596.0,87594.0,0.3608]
[1742824222122,0.1141581,87596.0,87594.0,0.1141604]
[1742824222320,0.11571811,87596.0,87592.0,0.0570815]
[1742824222525,0.11571811,87596.0,87594.0,0.1141604]
[1742824222827,0.11571811,87596.0,87595.0,0.67781557]
[1742824222828,0.00156001,87596.0,87595.0,0.67781557]
[1742824223225,0.0839,87596.0,87595.0,0.67781557]
[1742824223426,0.0929874,87596.0,87595.0,0.67781557]
[1742824223924,0.0090874,87596.0,87595.0,1.07781557]
[1742824224337,0.0090874,87596.0,87595.0,1.24901557]
[1742824224525,0.00017128,87604.0,87595.0,1.24901557]
[1742824224526,0.00017128,87604.0,87603.0,0.114149]
[1742824224725,0.00017128,87604.0,87603.0,1.101549]
[1742824225237,0.00017128,87604.0,87603.0,2.196049]
[1742824225826,0.00017128,87604.0,87603.0,1.276049]
[1742824227333,0.00017128,87604.0,87603.0,1.188749]
[1742824227526,0.00017128,87604.0,87603.0,0.861589]
[1742824227928,0.11431898,87604.0,87603.0,0.861589]
[1742824228235,0.1141581,87596.0,87595.0,0.4749594]
[1742824228432,0.1141562,87598.0,87597.0,0.171231]
[1742824228732,0.1141581,87596.0,87595.0,0.3608]
[1742824228931,0.1156381,87596.0,87595.0,0.3608]
[1742824229328,0.1141594,87595.0,87594.0,0.20285617]
[1742824229527,0.1141594,87595.0,87587.0,0.00017128]
[1742824229528,0.1141646,87591.0,87587.0,0.00017128]
[1742824229835,0.114179,87580.0,87563.0,0.084]
[1742824230040,0.1141933,87569.0,87564.0,0.1754]
[1742824230230,0.1141933,87569.0,87551.0,0.36125687]
[1742824230231,0.1142116,87555.0,87554.0,0.02]
[1742824230425,0.2328116,87555.0,87554.0,0.05]
[1742824230628,0.057111,87548.0,87540.0,0.1]
[1742824230825,0.1142299,87541.0,87540.0,0.11]
[1742824231025,0.1157099,87541.0,87540.0,0.11]
[1742824231228,0.2657099,87541.0,87540.0,0.11]
[1742824231431,0.37989187,87541.0,87540.0,0.11]
[1742824231838,0.11566197,87541.0,87540.0,0.1742312]
[1742824232227,0.11418197,87541.0,87540.0,0.1742312]
[1742824232626,0.1142299,87541.0,87540.0,0.2884624]
[1742824232935,0.1142299,87541.0,87540.0,0.1142312]
[1742824233125,0.1157099,87541.0,87540.0,0.1142312]
[1742824233433,0.00148,87541.0,87540.0,0.1142312]
[1742824233639,0.11571284,87541.0,87540.0,0.1142312]
[1742824233939,0.00148,87541.0,87540.0,0.1142312]
[1742824234135,0.0571054,87556.0,87555.0,0.1142065]
[1742824234335,0.4179013,87562.0,87561.0,0.1142038]
[1742824234639,0.11527285,87562.0,87561.0,0.1148038]
[1742824234829,0.0570815,87593.0,87561.0,0.1148038]
[1742824234830,0.1141856,87578.0,87577.0,0.1712708]
[1742824235034,0.1341856,87578.0,87577.0,0.5327508]
[1742824235427,0.19239681,87578.0,87577.0,0.5327508]
[1742824235824,0.30658138,87578.0,87577.0,0.5327508]
[1742824236030,0.30658138,87578.0,87577.0,0.36148]
[1742824236436,0.30658138,87578.0,87569.0,0.00017128]
[1742824236437,0.114192,87570.0,87569.0,0.00017128]
[1742824236635,0.11543201,87570.0,87569.0,0.00017128]
[1742824236840,0.11543201,87570.0,87569.0,0.00077128]
[1742824237236,0.22961658,87570.0,87569.0,0.00077128]
[1742824237924,0.00124001,87570.0,87569.0,0.56516458]
[1742824238130,8e-05,87574.0,87571.0,0.0570948]
[1742824238329,0.1141881,87573.0,87572.0,0.1786]
[1742824238532,0.22838311,87573.0,87572.0,0.0006]
[1742824238726,0.22982312,87573.0,87572.0,0.0006]
[1742824239135,0.114192,87570.0,87569.0,0.00017128]
[1742824239331,0.11543201,87570.0,87569.0,0.00141128]
[1742824239726,0.2296231,87570.0,87569.0,0.01141128]
[1742824239940,0.2296231,87570.0,87569.0,0.00141128]
[1742824240136,0.5904231,87570.0,87569.0,0.00141128]
[1742824240442,0.5904231,87570.0,87569.0,0.00017128]
[1742824240836,0.1142155,87552.0,87529.0,0.3608]
[1742824241139,0.1155355,87552.0,87551.0,0.03045687]
[1742824241339,0.1155355,87552.0,87551.0,0.03109687]
[1742824241535,0.22975398,87552.0,87551.0,0.03109687]
[1742824241738,0.1142259,87544.0,87543.0,0.0838]
[1742824241938,0.1142259,87544.0,87543.0,0.06077128]
[1742824241939,0.2331859,87544.0,87543.0,0.06077128]
[1742824242138,0.2331859,87544.0,87543.0,0.06017128]
[1742824242332,0.34741482,87544.0,87543.0,0.06017128]
[1742824242528,0.34741482,87544.0,87530.0,0.1744]
[1742824242733,0.1142364,87536.0,87535.0,0.01105696]
[1742824242935,0.2331564,87536.0,87535.0,0.00105696]
[1742824243234,0.2331564,87536.0,87535.0,0.11529466]
[1742824243437,0.34738532,87536.0,87535.0,0.11529466]
[1742824243644,0.34738532,87536.0,87535.0,0.00105696]
[1742824243944,0.1174,87542.0,87540.0,0.1142312]
[1742824244237,0.001,87542.0,87541.0,0.2617371]
[1742824244446,0.1142285,87542.0,87541.0,0.2623371]
[1742824244644,0.1153085,87542.0,87541.0,0.2623371]
[1742824244843,0.1142285,87542.0,87541.0,0.2623371]
[1742824245145,0.057193,87544.0,87543.0,0.1142272]
[1742824245346,8e-05,87544.0,87543.0,0.1149072]
[1742824245652,0.1142259,87544.0,87543.0,0.2862474]
[1742824245845,0.11526591,87544.0,87543.0,0.057793]
[1742824246029,0.11526591,87544.0,87543.0,0.00068]
[1742824246234,0.11526591,87544.0,87543.0,0.1149072]
[1742824246654,0.11526591,87544.0,87543.0,0.1983072]
[1742824247141,0.11526591,87544.0,87543.0,0.16648]
[1742824247941,0.11526591,87544.0,87543.0,0.2807072]
[1742824248744,0.00104001,87544.0,87543.0,0.2807072]
[1742824249043,0.1142259,87544.0,87543.0,0.3578202]
[1742824249252,0.001,87544.0,87543.0,0.3578202]
[1742824249443,8e-05,87546.0,87545.0,0.1142246]
[1742824249647,0.114222,87548.0,87547.0,0.0571104]
[1742824249849,0.115222,87548.0,87547.0,0.2461104]
[1742824250048,0.115222,87548.0,87547.0,0.2467104]
[1742824250551,0.00108,87548.0,87547.0,0.2467104]
[1742824250749,0.24971038,87555.0,87554.0,0.1142129]
[1742824250950,0.25043038,87555.0,87554.0,0.1148129]
[1742824251148,0.25043038,87555.0,87554.0,0.2051129]
[1742824251446,0.36464495,87555.0,87554.0,0.0909]
[1742824251638,0.22914617,87555.0,87554.0,0.0909]
[1742824253148,0.22914617,87555.0,87554.0,0.2051129]
[1742824254052,0.22914617,87555.0,87554.0,0.2949129]
[1742824254745,0.22914617,87555.0,87554.0,0.1807]
[1742824255054,0.22914617,87555.0,87554.0,0.0909]
[1742824255249,0.0571087,87551.0,87546.0,0.00017128]
[1742824255455,0.0571087,87551.0,87546.0,0.00081128]
[1742824255456,0.475022,87547.0,87546.0,0.00081128]
[1742824255755,0.475742,87547.0,87546.0,0.00081128]
[1742824256055,0.475742,87547.0,87546.0,0.11503458]
[1742824256056,0.22915657,87547.0,87546.0,0.11503458]
[1742824256254,0.00072,87547.0,87546.0,0.11503458]
[1742824256551,0.22844701,87547.0,87546.0,0.00081128]
[1742824256754,0.22920701,87547.0,87546.0,0.11503458]
[1742824256951,0.23120701,87547.0,87546.0,0.11503458]
[1742824257956,0.23120701,87547.0,87546.0,0.00081128]
[1742824258153,0.23120701,87547.0,87546.0,0.11503458]
[1742824258346,0.23120701,87547.0,87546.0,0.00081128]
[1742824259148,0.23120701,87547.0,87546.0,0.18201128]
[1742824259345,0.32320701,87547.0,87546.0,0.18201128]
[1742824259548,0.23120701,87547.0,87546.0,0.29623458]
[1742824261059,0.11698501,87547.0,87546.0,0.29623458]
[1742824261366,0.00276,87547.0,87546.0,0.29623458]
[1742824261558,0.00276,87547.0,87546.0,0.18201128]
[1742824261764,0.1142364,87536.0,87535.0,0.00045696]
[1742824261950,0.4179171,87538.0,87536.0,0.0571182]
[1742824262146,0.41887711,87538.0,87537.0,0.2019351]
[1742824262351,0.41887711,87538.0,87537.0,0.2026151]
[1742824262762,0.63341451,87538.0,87537.0,0.2026151]
[1742824262959,0.72629741,87538.0,87511.0,0.3608]
[1742824263149,0.1142507,87525.0,87524.0,0.2019496]
[1742824263355,0.11736,87529.0,87528.0,0.1142468]
[1742824263561,0.23268551,87529.0,87528.0,0.1148468]
[1742824263754,0.11744001,87529.0,87528.0,0.1148468]
[1742824263960,0.34593335,87529.0,87528.0,0.1148468]
[1742824264159,0.11532785,87529.0,87528.0,0.1148468]
[1742824264463,0.1142455,87530.0,87529.0,0.114241]
[1742824264764,0.1150055,87530.0,87529.0,0.0871]
[1742824264954,0.1150055,87530.0,87529.0,0.1811]
[1742824265154,0.2888055,87530.0,87529.0,0.2953455]
[1742824265354,0.2888055,87530.0,87529.0,0.1811]
[1742824265663,0.2888055,87530.0,87529.0,0.1821]
[1742824265664,0.881334,87530.0,87529.0,0.1821]
[1742824265868,0.1142743,87511.0,87507.0,0.0571371]
[1742824266057,0.1142674,87513.0,87512.0,0.1142664]
[1742824266257,0.1142716,87511.0,87510.0,0.1142693]
[1742824266452,0.1714067,87511.0,87510.0,0.1149093]
[1742824266758,0.17244671,87511.0,87510.0,0.1149093]
[1742824266952,0.17244671,87511.0,87510.0,0.09464]
[1742824267155,0.2295784,87511.0,87510.0,0.2089103]
[1742824267667,0.2295784,87511.0,87510.0,0.3001103]
[1742824267965,0.2295784,87511.0,87510.0,0.18584]
[1742824268155,0.3469384,87511.0,87510.0,0.09464]
[1742824268360,0.3479384,87511.0,87510.0,0.09464]
[1742824268564,0.5263384,87511.0,87510.0,0.094]
[1742824268761,0.5263384,87511.0,87509.0,0.0901]
[1742824268762,0.1142782,87504.0,87503.0,0.09465712]
[1742824269068,0.1152782,87504.0,87503.0,0.18543712]
[1742824269261,0.5937582,87504.0,87503.0,0.18543712]
[1742824269457,0.7080302,87504.0,87503.0,0.18543712]
[1742824269869,0.7961302,87504.0,87503.0,0.18543712]
[1742824270060,0.1142912,87494.0,87489.0,0.0017146]
[1742824270367,0.1154512,87494.0,87493.0,0.2054918]
[1742824270568,0.00101583,87494.0,87493.0,0.5674518]
[1742824270767,1.583e-05,87494.0,87493.0,0.6074518]
[1742824270967,0.1714204,87504.0,87503.0,0.1142768]
[1742824271269,0.0579796,87504.0,87503.0,0.1151168]
[1742824271570,0.17226074,87504.0,87503.0,0.1151168]
[1742824272070,0.17226074,87504.0,87503.0,0.2980168]
[1742824272269,0.17326074,87504.0,87503.0,0.2980168]
[1742824272665,0.17326074,87504.0,87503.0,0.18374]
[1742824272865,0.35546074,87504.0,87503.0,0.1829]
[1742824273065,0.1142912,87494.0,87493.0,0.0912]
[1742824273255,0.1152912,87494.0,87493.0,0.0918]
[1742824273572,0.1152912,87494.0,87493.0,0.2066925]
[1742824273876,0.2295854,87494.0,87493.0,0.0006]
[1742824274062,0.1142951,87491.0,87490.0,0.0934]
[1742824274263,0.1142951,87491.0,87490.0,0.094]
[1742824274464,0.1142951,87491.0,87490.0,0.1854]
[1742824274659,0.22859322,87491.0,87490.0,0.1854]
[1742824275478,0.22759322,87491.0,87490.0,0.1854]
[1742824276276,0.22859322,87491.0,87490.0,0.1854]
[1742824277983,0.22859322,87491.0,87490.0,0.00528798]
[1742824278182,0.31559322,87491.0,87490.0,0.00528798]
[1742824278482,0.1142991,87488.0,87487.0,0.00045721]
[1742824278777,0.47629911,87488.0,87487.0,0.00045721]
[1742824278968,0.47629911,87488.0,87474.0,0.1743583]
[1742824278969,0.057154,87482.0,87474.0,0.0571583]
[1742824279172,0.057154,87482.0,87453.0,0.417972]
[1742824279173,0.1143147,87476.0,87475.0,0.203114]
[1742824279470,0.4751147,87476.0,87475.0,0.203114]
[1742824279669,0.59062851,87476.0,87475.0,0.203714]
[1742824280074,0.67922851,87476.0,87475.0,0.0894]
[1742824280273,0.67922851,87476.0,87475.0,0.203116]
[1742824280581,0.67922851,87476.0,87475.0,0.204756]
[1742824281373,0.59062851,87476.0,87475.0,0.204756]
[1742824281573,0.59062851,87476.0,87475.0,0.380256]
[1742824281771,0.11551381,87476.0,87475.0,0.380256]
[1742824281969,0.4750991,87488.0,87487.0,0.1143004]
[1742824282292,0.47597911,87488.0,87487.0,0.1143004]
[1742824282491,0.20324817,87504.0,87486.0,0.2307508]
[1742824282779,0.02923953,87497.0,87496.0,0.1142886]
[1742824282983,0.02863952,87497.0,87496.0,0.1248886]
[1742824283173,0.02863952,87497.0,87496.0,0.2861886]
[1742824283374,0.20324817,87504.0,87500.0,0.0571413]
[1742824283578,0.23861518,87518.0,87511.0,0.114269]
[1742824283782,0.00100001,87512.0,87511.0,0.114869]
[1742824284187,0.00100001,87512.0,87511.0,0.199969]
[1742824285179,0.00700001,87512.0,87511.0,0.199969]
[1742824285489,0.12126771,87512.0,87511.0,0.199969]
[1742824285684,0.00700001,87512.0,87511.0,0.199969]
[1742824285891,0.12126771,87512.0,87511.0,0.199969]